bitfinex-derivatives/quotes_SOLF0:USTF0_20260202
["timestamp","ask_amount","ask_price","bid_price","bid_amount"]
[1770014312005,32.90009471,97.869,97.756,143.3771]
[1770014312205,32.90053699,97.838,97.73,8.6882861]
[1770014312410,32.90053699,97.834,97.731,143.4149]
[1770014312614,32.90053699,97.834,97.733,9.2192]
[1770014312808,32.63557903,97.819,97.703,143.4561]
[1770014313007,32.63557903,97.817,97.703,143.4561]
[1770014313202,32.63557903,97.817,97.715,143.4377]
[1770014313509,32.63557903,97.817,97.728,143.4183]
[1770014313707,32.63557903,97.817,97.731,9.2195]
[1770014314008,32.63557903,97.817,97.719,143.4326]
[1770014314009,32.63557903,97.817,97.742,143.3986]
[1770014314210,32.63557903,97.817,97.747,143.3911]
[1770014314410,32.63557903,97.817,97.747,152.6091]
[1770014315016,32.63557903,97.817,97.731,9.2194]
[1770014315307,32.63557903,97.817,97.726,143.4224]
[1770014315708,32.63557903,97.817,97.716,143.4368]
[1770014315904,32.63557903,97.817,97.728,143.4195]
[1770014316104,32.63557903,97.817,97.728,9.2197]
[1770014316309,32.63557903,97.817,97.708,143.4482]
[1770014316310,41.84697903,97.817,97.708,143.4482]
[1770014316516,32.70448722,97.814,97.709,143.4467]
[1770014316912,32.70983354,97.813,97.714,152.6609]
[1770014317108,32.70983354,97.813,97.727,143.4205]
[1770014317315,32.70983354,97.813,97.717,143.4348]
[1770014317705,32.70983354,97.813,97.744,143.3951]
[1770014318011,32.70983354,97.813,97.75,143.387]
[1770014318207,32.71077665,97.838,97.774,143.3518]
[1770014318512,21.6381356,97.87,97.768,143.3599]
[1770014318712,32.70172082,97.862,97.759,143.3729]
[1770014319016,32.70172082,97.842,97.736,143.4065]
[1770014319516,32.70172082,97.838,97.741,9.2185]
[1770014319710,32.70172082,97.838,97.726,143.4219]
[1770014319914,32.70203584,97.834,97.726,143.4219]
[1770014320309,32.70203584,97.833,97.739,9.2187]
[1770014320508,32.70203584,97.833,97.739,152.622]
[1770014320913,32.70203584,97.833,97.759,143.3738]
[1770014321310,32.70203584,97.833,97.759,9.2169]
[1770014321511,32.89640605,97.766,97.645,143.5403]
[1770014321707,143.3414,97.782,97.652,143.5305]
[1770014321708,32.89640605,97.763,97.652,143.5305]
[1770014321912,32.89673945,97.739,97.642,9.2278]
[1770014322214,32.89673945,97.739,97.651,143.5322]
[1770014322414,32.89673945,97.739,97.642,143.5452]
[1770014322608,32.89673945,97.737,97.633,143.5579]
[1770014322810,32.89673945,97.737,97.599,574.4354]
[1770014322811,32.97154024,97.723,97.603,9.2315]
[1770014323216,32.97154024,97.723,97.587,143.6253]
[1770014323217,32.97154024,97.717,97.587,143.6253]
[1770014323418,32.97154024,97.696,97.562,143.6621]
[1770014323614,32.97154024,97.687,97.553,143.6767]
[1770014323813,32.9718686,97.678,97.556,152.9082]
[1770014324113,32.9718686,97.661,97.544,612.58]
[1770014324314,32.9718686,97.66,97.544,612.58]
[1770014324911,33.11105008,97.658,97.544,612.58]
[1770014325116,33.11105008,97.648,97.544,408.06]
[1770014325311,33.11105008,97.636,97.522,143.7217]
[1770014325511,33.11105008,97.636,97.512,143.736]
[1770014325712,33.11105008,97.636,97.515,143.7315]
[1770014325919,33.11105008,97.636,97.512,143.736]
[1770014325920,33.11105008,97.636,97.525,143.7171]
[1770014326308,33.11105008,97.636,97.519,143.726]
[1770014326913,33.11105008,97.636,97.503,143.7494]
[1770014327217,152.7951,97.629,97.5,21.6381356]
[1770014327416,33.19785523,97.616,97.518,1.78320254]
[1770014327612,33.19785523,97.613,97.482,278.34154039]
[1770014327809,143.6257,97.588,97.482,278.34154039]
[1770014328016,143.6257,97.588,97.399,24.7738101]
[1770014328017,33.19817095,97.538,97.431,143.8565]
[1770014328815,31.80842777,97.566,97.438,1.78471148]
[1770014329013,143.6166,97.594,97.459,143.8152]
[1770014329218,32.64823353,97.61,97.438,1.78471148]
[1770014329219,143.6011,97.605,97.46,143.8125]
[1770014329414,175.4096102,97.589,97.452,143.8253]
[1770014329716,31.7853102,97.589,97.452,143.8253]
[1770014329918,31.7856008,97.58,97.45,32.64823353]
[1770014330120,143.6236,97.59,97.441,143.8406]
[1770014330121,31.7856008,97.578,97.441,143.8406]
[1770014330329,31.7856008,97.578,97.451,143.827]
[1770014330513,31.7856008,97.578,97.441,143.8406]
[1770014330713,31.7856008,97.576,97.45,143.8273]
[1770014331216,31.7856008,97.576,97.46,143.8137]
[1770014331420,31.7856008,97.576,97.47,143.799]
[1770014331621,31.85243187,97.604,97.489,143.7697]
[1770014331822,31.85243187,97.604,97.489,143.7698]
[1770014332322,31.85243187,97.604,97.491,9.2422]
[1770014332514,31.85243187,97.604,97.494,143.7636]
[1770014332716,31.85243187,97.604,97.484,408.56]
[1770014332717,31.85243187,97.604,97.488,143.7723]
[1770014333520,31.85243187,97.604,97.484,408.56]
[1770014333820,31.85243187,97.604,97.488,143.7725]
[1770014334019,32.09258419,97.601,97.484,408.56]
[1770014334421,143.6556,97.568,97.433,9.2476]
[1770014334612,32.09258419,97.567,97.433,9.2476]
[1770014334817,32.09258419,97.567,97.442,143.8396]
[1770014335013,32.09258419,97.567,97.442,153.0864]
[1770014335227,32.09258419,97.567,97.452,143.8246]
[1770014335527,32.04954873,97.583,97.437,143.8476]
[1770014335818,32.04954873,97.578,97.46,143.8135]
[1770014336015,32.04954873,97.578,97.453,9.2457]
[1770014336215,32.04954873,97.578,97.475,143.7906]
[1770014336420,32.04978219,97.611,97.475,143.7906]
[1770014336620,32.04978219,97.604,97.479,143.7846]
[1770014336815,31.90046274,97.593,97.459,143.8151]
[1770014337017,31.90046274,97.585,97.454,143.8227]
[1770014337225,31.90046274,97.582,97.449,143.83]
[1770014337414,31.90046274,97.575,97.439,143.8445]
[1770014337825,31.90046274,97.575,97.439,153.0916]
[1770014338016,31.90046274,97.575,97.448,143.8304]
[1770014338217,31.90046274,97.575,97.439,153.0916]
[1770014338218,31.90066501,97.569,97.439,153.0916]
[1770014338625,31.90066501,97.567,97.439,153.0916]
[1770014339219,143.6741,97.555,97.432,408.74]
[1770014339425,31.75342837,97.544,97.432,408.74]
[1770014339618,31.75342837,97.544,97.433,143.8533]
[1770014340423,31.75342837,97.544,97.452,143.8253]
[1770014340621,31.75342837,97.544,97.454,143.8222]
[1770014340922,31.75342837,97.544,97.454,153.0679]
[1770014341122,31.75342837,97.544,97.441,143.8409]
[1770014341323,31.65996634,97.575,97.451,143.8266]
[1770014342023,31.66011835,97.572,97.451,9.246]
[1770014342231,31.66011835,97.572,97.451,153.072]
[1770014342424,31.66011835,97.572,97.451,9.246]
[1770014342730,31.87749625,97.57,97.451,153.0726]
[1770014343427,31.87749625,97.57,97.466,143.8047]
[1770014343730,31.87749625,97.596,97.487,143.7736]
[1770014344120,31.87764929,97.62,97.519,143.7256]
[1770014344328,31.87764929,97.62,97.508,143.7421]
[1770014344729,31.87764929,97.62,97.526,143.7163]
[1770014344925,31.90236779,97.648,97.552,143.6777]
[1770014345230,31.90236779,97.648,97.565,9.2351]
[1770014345430,31.90236779,97.648,97.565,152.894]
[1770014345627,31.90236779,97.706,97.589,143.6231]
[1770014345825,31.90250748,97.692,97.571,143.6489]
[1770014346032,31.90250748,97.689,97.571,143.6489]
[1770014346226,31.90250748,97.615,97.505,9.2408]
[1770014346530,31.90250748,97.615,97.527,143.7147]
[1770014346727,31.90250748,97.615,97.529,143.7117]
[1770014347032,32.0037054,97.645,97.558,143.6693]
[1770014347328,32.0037054,97.696,97.592,9.2326]
[1770014347626,32.0037054,97.696,97.592,152.8505]
[1770014347832,32.0037054,97.696,97.606,9.2313]
[1770014348025,32.0037054,97.696,97.606,152.8298]
[1770014348226,32.00296928,97.723,97.625,143.5703]
[1770014348433,32.00296928,97.723,97.615,143.5847]
[1770014348634,32.00296928,97.699,97.592,143.618]
[1770014348929,32.00296928,97.699,97.5,10.22]
[1770014349131,32.74589382,97.674,97.583,143.6322]
[1770014349339,32.74589382,97.674,97.584,143.6307]
[1770014349636,32.64823353,97.7,97.609,143.593]
[1770014349824,143.5157,97.663,97.552,143.677]
[1770014350026,143.492,97.679,97.564,143.6603]
[1770014350027,32.74603401,97.66,97.564,143.6603]
[1770014350332,32.74603401,97.66,97.588,143.6244]
[1770014350835,32.74603401,97.66,97.588,152.8573]
[1770014351233,32.74603401,97.66,97.576,143.6414]
[1770014351431,32.74603401,97.66,97.573,152.8807]
[1770014351937,32.93101608,97.643,97.543,9.2372]
[1770014352132,32.93101608,97.643,97.545,143.6872]
[1770014352332,32.93101608,97.64,97.538,143.6986]
[1770014352633,32.93101608,97.64,97.549,9.2367]
[1770014353038,32.93101608,97.64,97.562,152.8978]
[1770014353231,41.87353353,97.67,97.577,143.641]
[1770014353436,32.93886279,97.669,97.578,143.639]
[1770014353735,32.93897235,97.683,97.558,143.6684]
[1770014353936,32.93897235,97.683,97.577,143.6412]
[1770014354137,32.93897235,97.713,97.604,9.2314]
[1770014354732,32.94337099,97.699,97.578,143.6398]
[1770014354927,32.94337099,97.699,97.58,143.636]
[1770014355436,32.94337099,97.676,97.549,143.6821]
[1770014355740,32.94337099,97.676,97.566,143.6575]
[1770014355935,32.94337099,97.676,97.556,143.6712]
[1770014356130,32.94337099,97.676,97.557,9.2359]
[1770014356431,32.94337099,97.676,97.568,143.6544]
[1770014356934,32.94337099,97.676,97.546,143.6868]
[1770014357141,32.94337099,97.676,97.54,32.64823353]
[1770014357334,32.73334139,97.673,97.54,32.64823353]
[1770014357538,32.73334139,97.673,97.532,143.7067]
[1770014357539,32.73334139,97.658,97.542,143.6917]
[1770014357835,32.73334139,97.658,97.545,9.2371]
[1770014358132,32.73340922,97.634,97.505,143.7473]
[1770014358340,32.73340922,97.634,97.517,152.9688]
[1770014358537,32.73340922,97.634,97.517,143.7291]
[1770014358736,32.73340922,97.662,97.544,143.6898]
[1770014358936,32.73340922,97.662,97.526,143.716]
[1770014359131,32.73340922,97.662,97.529,143.7108]
[1770014359435,32.71998798,97.692,97.578,9.2339]
[1770014359640,32.71998798,97.692,97.543,143.6904]
[1770014359641,32.71998798,97.692,97.549,143.6819]
[1770014359835,32.71998798,97.692,97.553,143.6763]
[1770014360237,32.72003884,97.689,97.553,9.2363]
[1770014360737,32.72003884,97.649,97.509,152.9816]
[1770014360931,143.5372,97.648,97.5,32.64823353]
[1770014361136,32.80931179,97.636,97.509,143.7404]
[1770014361336,32.80931179,97.636,97.51,152.9797]
[1770014361936,32.80931179,97.636,97.504,408.76]
[1770014361937,32.80931179,97.636,97.53,143.7098]
[1770014362439,32.80934743,97.668,97.537,143.6988]
[1770014362638,32.80934743,97.666,97.537,143.6988]
[1770014362935,32.80934743,97.666,97.543,9.2372]
[1770014363134,32.93769502,97.664,97.543,9.2372]
[1770014363336,32.93769502,97.662,97.536,143.7012]
[1770014363539,32.93769502,97.662,97.538,143.6982]
[1770014363744,32.93769502,97.662,97.541,152.931]
[1770014364042,32.93769502,97.662,97.541,9.2374]
[1770014364438,32.9377152,97.66,97.541,9.2374]
[1770014365035,32.64823353,97.68,97.541,9.2374]
[1770014365036,32.9554029,97.656,97.541,9.2374]
[1770014365237,143.5154,97.663,97.511,143.7375]
[1770014365238,32.9554029,97.642,97.526,9.2388]
[1770014365541,32.9554029,97.636,97.519,143.7262]
[1770014365740,32.9554029,97.636,97.533,143.705]
[1770014365940,32.9554029,97.636,97.422,31.31943955]
[1770014365941,32.95540667,97.606,97.479,143.7855]
[1770014366138,32.95540667,97.606,97.479,408.76]
[1770014366333,32.95540667,97.571,97.441,143.8412]
[1770014366542,32.95540667,97.571,97.461,143.812]
[1770014366742,32.95540667,97.571,97.474,9.2437]
[1770014366941,32.95540667,97.571,97.461,143.812]
[1770014367248,32.69543736,97.556,97.432,9.2477]
[1770014367541,176.41553736,97.524,97.394,143.9102]
[1770014367742,32.69543736,97.523,97.4,143.9018]
[1770014367936,143.6712,97.557,97.391,408.76]
[1770014367937,32.69542602,97.512,97.41,143.8876]
[1770014368742,32.66718581,97.545,97.425,153.1126]
[1770014368932,32.66718581,97.541,97.427,143.8624]
[1770014369136,32.66718581,97.541,97.441,143.8415]
[1770014369346,32.66718581,97.541,97.441,153.0884]
[1770014369846,32.66718581,97.541,97.441,9.2469]
[1770014370544,32.66718581,97.541,97.441,153.0883]
[1770014370939,32.66718581,97.541,97.441,9.2469]
[1770014371141,32.66718581,97.541,97.43,143.8573]
[1770014371335,32.66718581,97.541,97.428,408.84]
[1770014371336,32.66718581,97.541,97.443,143.8379]
[1770014371643,32.7015618,97.536,97.428,408.84]
[1770014371844,32.7015618,97.536,97.427,9.2482]
[1770014372440,32.70152196,97.525,97.415,408.92]
[1770014372641,32.70152196,97.521,97.426,143.8636]
[1770014372839,32.70152196,97.521,97.42,143.8729]
[1770014373140,32.70152196,97.521,97.416,143.8782]
[1770014373441,32.27241261,97.499,97.387,143.9213]
[1770014373637,32.27241261,97.495,97.387,143.9213]
[1770014373838,32.27241261,97.495,97.406,143.8928]
[1770014374036,32.27236661,97.519,97.434,143.8521]
[1770014374645,32.27236661,97.519,97.425,143.8642]
[1770014374849,32.27236661,97.519,97.351,10.22]
[1770014374850,32.27236661,97.549,97.472,143.7951]
[1770014375242,32.19976976,97.589,97.474,143.793]
[1770014375443,32.19976976,97.589,97.487,143.7736]
[1770014375644,32.19976976,97.589,97.5,143.7548]
[1770014375947,32.19976976,97.589,97.49,143.7692]
[1770014376148,32.19976976,97.589,97.5,9.2413]
[1770014376739,32.19976976,97.589,97.493,143.764]
[1770014376740,32.19976976,97.589,97.52,9.2394]
[1770014377046,32.13639481,97.64,97.536,143.701]
[1770014377245,32.13639481,97.64,97.546,143.687]
[1770014377441,32.13639481,97.64,97.536,143.701]
[1770014377643,32.14096324,97.61,97.501,143.7527]
[1770014377845,32.14096324,97.61,97.503,143.7499]
[1770014378042,32.14096324,97.61,97.492,409.06]
[1770014378043,32.14154571,97.669,97.555,143.6725]
[1770014378247,32.14154571,97.653,97.555,143.6725]
[1770014378545,32.14154571,97.653,97.553,143.6756]
[1770014378748,32.14154571,97.653,97.53,143.71]
[1770014378749,32.14154571,97.625,97.532,143.7073]
[1770014379147,32.14154571,97.625,97.532,152.9456]
[1770014379646,32.14154571,97.625,97.522,152.9602]
[1770014379852,32.14154571,97.625,97.533,143.7057]
[1770014380046,32.04375964,97.666,97.58,143.6365]
[1770014380347,32.04375964,97.661,97.555,143.6731]
[1770014380547,32.04375964,97.652,97.543,143.6904]
[1770014380949,32.04375964,97.652,97.543,152.9276]
[1770014381651,32.04375964,97.652,97.57,143.6514]
[1770014381856,32.04375964,97.652,97.58,143.6367]
[1770014382254,32.04375964,97.652,97.57,152.886]
[1770014382653,32.04375964,97.652,97.579,143.6373]
[1770014382961,32.04375964,97.652,97.579,152.8711]
[1770014383351,32.04375964,97.652,97.589,143.6236]
[1770014383655,32.04375964,97.652,97.56,143.6658]
[1770014383656,31.38982996,97.709,97.623,143.5733]
[1770014383855,31.38975903,97.749,97.659,143.5208]
[1770014384054,31.38975903,97.749,97.638,143.5505]
[1770014384255,31.38975903,97.749,97.648,143.5368]
[1770014384455,31.38975903,97.749,97.684,143.4834]
[1770014384659,31.38975903,97.749,97.673,143.4995]
[1770014384854,31.38975903,97.749,97.653,143.5282]
[1770014385055,143.3624,97.767,97.624,143.5719]
[1770014385056,31.88611902,97.738,97.624,143.5719]
[1770014385258,31.88611902,97.728,97.618,143.5798]
[1770014385453,31.88611902,97.728,97.626,9.2294]
[1770014386054,31.88611902,97.728,97.631,143.5615]
[1770014386263,31.88611902,97.728,97.644,143.5417]
[1770014386452,31.88611902,97.728,97.631,143.5615]
[1770014386658,31.88611902,97.728,97.635,143.555]
[1770014387661,31.88611902,97.728,97.635,9.2285]
[1770014387965,31.88611902,97.728,97.626,143.5684]
[1770014387966,31.80605745,97.726,97.626,143.5684]
[1770014388361,31.80594872,97.72,97.63,143.5623]
[1770014388560,31.80594872,97.72,97.62,143.5779]
[1770014388960,31.80594872,97.72,97.62,152.8078]
[1770014389765,31.23032445,97.714,97.604,152.8325]
[1770014389964,31.23032445,97.714,97.614,143.5865]
[1770014390158,143.4217,97.727,97.605,143.5995]
[1770014390159,31.23023908,97.706,97.605,143.5995]
[1770014390363,31.23023908,97.699,97.602,143.6032]
[1770014390870,31.23023908,97.695,97.603,143.6029]
[1770014391067,31.23023908,97.695,97.603,152.8344]
[1770014391567,31.23023908,97.695,97.616,152.8139]
[1770014391965,31.23023908,97.695,97.628,143.5662]
[1770014392365,31.23023908,97.695,97.608,143.5949]
[1770014392564,31.23023908,97.695,97.613,143.588]
[1770014392869,31.23023908,97.695,97.567,143.655]
[1770014393762,31.23023908,97.695,97.567,152.8899]
[1770014394365,31.23023908,97.695,97.579,152.8718]
[1770014394761,31.23023908,97.695,97.6,143.6076]
[1770014395067,31.23023908,97.695,97.583,408.72]
[1770014395261,31.23023908,97.695,97.586,152.8599]
[1770014395570,31.23023908,97.695,97.587,408.7]
[1770014396671,31.19526405,97.689,97.56,8.72052241]
[1770014396870,31.19526405,97.689,97.561,408.7]
[1770014397071,31.1671298,97.669,97.561,408.7]
[1770014399472,31.1671298,97.669,97.564,9.2352]
[1770014399775,31.1671298,97.669,97.565,408.68]
[1770014400168,31.1671298,97.669,97.57,9.2347]
[1770014400374,143.4084,97.736,97.565,408.68]
[1770014400375,31.22846719,97.697,97.592,143.6188]
[1770014400676,31.22846719,97.697,97.598,152.8412]
[1770014400874,31.22846719,97.697,97.569,143.6523]
[1770014401171,31.22121361,97.689,97.57,417.40052241]
[1770014401370,31.22121361,97.689,97.579,9.2338]
[1770014401567,39.94173602,97.71,97.59,152.34262241]
[1770014401768,31.22121361,97.709,97.601,9.2317]
[1770014401974,31.22121361,97.709,97.59,8.72052241]
[1770014402170,31.22121361,97.709,97.61,8.72052241]
[1770014402476,31.22121361,97.709,97.572,30.65]
[1770014402477,31.22148968,97.807,97.662,143.516]
[1770014402673,143.2886,97.818,97.68,143.4888]
[1770014402674,31.22148968,97.799,97.68,143.4888]
[1770014402976,31.22148968,97.799,97.681,391.68]
[1770014403174,31.14523711,97.789,97.681,391.68]
[1770014403370,143.2843,97.821,97.681,391.68]
[1770014403371,31.14523711,97.817,97.69,8.72052241]
[1770014403571,31.14523711,97.845,97.747,143.3905]
[1770014403777,31.14523711,97.845,97.75,8.72052241]
[1770014404075,31.14523711,97.845,97.73,8.72052241]
[1770014404474,31.14523711,97.845,97.729,9.2196]
[1770014404667,31.14523711,97.845,97.756,143.3781]
[1770014404874,31.00590637,97.899,97.78,143.3426]
[1770014405073,31.00590637,97.899,97.775,408.64]
[1770014405470,31.00590637,97.899,97.737,174.0557]
[1770014405471,31.00590637,97.865,97.733,9.2192]
[1770014405676,31.00590637,97.865,97.74,143.401]
[1770014405876,31.00590637,97.865,97.746,143.3918]
[1770014406178,31.00590637,97.865,97.749,152.6054]
[1770014406379,31.00590637,97.865,97.734,408.58]
[1770014406673,31.00613402,97.824,97.7,143.4601]
[1770014406874,31.08073915,97.85,97.73,143.4162]
[1770014407279,31.08073915,97.85,97.73,9.2195]
[1770014407479,31.08073915,97.85,97.744,143.3952]
[1770014407676,31.08073915,97.85,97.764,9.2163]
[1770014407877,31.08150967,97.903,97.765,143.3651]
[1770014408077,21.6368948,97.91,97.765,143.3651]
[1770014408078,31.08150967,97.898,97.765,143.3651]
[1770014408674,143.2155,97.868,97.736,143.4066]
[1770014408883,31.08150967,97.862,97.733,143.4109]
[1770014409183,21.6368948,97.85,97.728,143.4191]
[1770014409378,30.95216511,97.849,97.742,143.3984]
[1770014409581,30.95216511,97.849,97.752,143.3842]
[1770014409775,30.95216511,97.849,97.732,143.4128]
[1770014410075,143.2716,97.829,97.692,143.4719]
[1770014410282,30.95237139,97.818,97.687,143.4793]
[1770014410583,30.95237139,97.818,97.698,143.4629]
[1770014411175,30.95237139,97.818,97.698,152.6854]
[1770014411481,30.95237139,97.818,97.727,143.4204]
[1770014411682,30.95237139,97.818,97.68,408.32]
[1770014411683,30.95237139,97.818,97.693,143.4705]
[1770014411881,30.95237139,97.818,97.704,143.4541]
[1770014412076,30.95237139,97.818,97.715,143.4378]
[1770014412481,30.95237139,97.818,97.721,143.4291]
[1770014412677,30.95237139,97.818,97.721,152.6495]
[1770014413084,30.95237139,97.818,97.733,143.4115]
[1770014413280,30.95237139,97.818,97.744,143.3959]
[1770014413480,30.95237139,97.818,97.745,152.6122]
[1770014413984,31.04286516,97.848,97.767,9.2161]
[1770014414185,31.04286516,97.848,97.77,143.3575]
[1770014414382,31.04286516,97.848,97.765,143.3649]
[1770014414582,31.04286516,97.848,97.76,143.3723]
[1770014414784,31.04286516,97.848,97.763,143.3679]
[1770014414986,31.04286516,97.848,97.775,143.3502]
[1770014415287,31.04286516,97.848,97.777,9.2151]
[1770014415480,31.04286516,97.848,97.76,143.3723]
[1770014415686,31.04286516,97.848,97.752,152.6014]
[1770014415876,30.1833679,97.832,97.724,143.4246]
[1770014416076,30.1833679,97.832,97.714,143.4389]
[1770014416077,30.1833679,97.813,97.718,143.4332]
[1770014416283,30.1833679,97.813,97.718,152.6539]
[1770014416579,30.1833679,97.813,97.718,9.2207]
[1770014416777,30.1833679,97.785,97.664,143.5131]
[1770014416980,30.1833679,97.785,97.675,143.4964]
[1770014417887,30.1833679,97.785,97.684,9.2239]
[1770014418186,30.13342304,97.809,97.701,143.4583]
[1770014418391,30.13342304,97.837,97.726,152.6415]
[1770014418686,30.13342304,97.837,97.726,9.2199]
[1770014418878,30.13342304,97.837,97.732,152.6319]
[1770014419080,30.13342304,97.837,97.741,143.4003]
[1770014419283,30.13342304,97.837,97.732,143.4125]
[1770014419480,30.13342304,97.837,97.736,143.4076]
[1770014419680,30.06806261,97.867,97.745,9.2181]
[1770014420087,30.06806261,97.867,97.746,143.3927]
[1770014420278,30.0681229,97.859,97.724,143.4244]
[1770014420482,30.0681229,97.859,97.714,143.4397]
[1770014420483,30.0681229,97.859,97.728,143.4192]
[1770014420685,30.0681229,97.859,97.744,143.3956]
[1770014420880,143.2345,97.855,97.718,143.4339]
[1770014421085,143.2345,97.855,97.703,143.4554]
[1770014421086,30.38788216,97.85,97.708,143.4485]
[1770014421385,30.38788216,97.843,97.718,9.2206]
[1770014421889,30.38788216,97.843,97.72,143.431]
[1770014422383,30.38798459,97.84,97.718,143.434]
[1770014423283,164.8489948,97.87,97.741,9.2185]
[1770014423284,30.41271757,97.858,97.741,9.2185]
[1770014423884,30.41282095,97.845,97.722,9.2203]
[1770014424086,30.41282095,97.843,97.722,9.2203]
[1770014424289,30.41282095,97.827,97.694,143.4691]
[1770014424685,30.41282095,97.823,97.704,9.222]
[1770014424890,30.41282095,97.823,97.687,143.4796]
[1770014425279,30.41282095,97.823,97.699,143.4619]
[1770014425479,30.41282095,97.823,97.713,143.4402]
[1770014425688,30.41282095,97.823,97.713,9.2212]
[1770014425888,30.41282095,97.823,97.7,408.12]
[1770014426287,30.41282095,97.823,97.664,143.513]
[1770014426288,29.94225921,97.808,97.671,9.2251]
[1770014426489,29.94225921,97.789,97.674,143.4974]
[1770014426684,29.94225921,97.862,97.685,143.4815]
[1770014426887,29.94225921,97.839,97.712,9.2212]
[1770014427084,29.86258208,97.829,97.712,9.2212]
[1770014427285,29.86258208,97.829,97.712,152.6634]
[1770014427990,29.86258208,97.829,97.704,143.4539]
[1770014427991,29.86258208,97.829,97.735,143.4091]
[1770014428195,29.86258208,97.829,97.737,143.4055]
[1770014428394,29.8626109,97.854,97.754,143.3804]
[1770014429096,29.8626109,97.854,97.76,8.70590441]
[1770014429286,29.8626109,97.854,97.742,143.3985]
[1770014429491,29.8626109,97.854,97.737,408.1]
[1770014429793,29.28692622,97.839,97.737,408.1]
[1770014431402,29.32786003,97.882,97.761,143.3705]
[1770014431693,18.3936,97.973,97.761,143.3705]
[1770014431694,29.32786003,97.879,97.78,143.3424]
[1770014431892,29.32786003,97.879,97.772,143.3545]
[1770014432096,29.32782276,97.859,97.766,143.3634]
[1770014432397,29.32782276,97.859,97.77,143.3576]
[1770014432600,29.32782276,97.859,97.766,9.2162]
[1770014433594,29.32782276,97.859,97.752,9.2175]
[1770014433891,29.32782276,97.859,97.72,8.70590441]
[1770014434694,29.35567609,97.839,97.725,9.22]
[1770014434894,29.35567609,97.839,97.726,143.4212]
[1770014435091,29.09559168,97.859,97.74,8.70590441]
[1770014435287,29.09559168,97.859,97.761,9.2167]
[1770014435688,29.09559168,97.859,97.746,9.218]
[1770014435990,29.09559168,97.859,97.756,143.3772]
[1770014436497,29.09559168,97.859,97.781,143.3404]
[1770014436793,29.10142452,97.879,97.792,143.3248]
[1770014436988,29.10142452,97.879,97.8,143.3137]
[1770014437393,29.10142452,97.879,97.806,152.5163]
[1770014437598,29.10142452,97.879,97.78,8.70590441]
[1770014437599,29.10142452,97.908,97.818,143.2868]
[1770014437794,29.10142452,97.908,97.807,143.3028]
[1770014437995,29.10142452,97.908,97.818,9.2112]
[1770014438290,9.2021,97.916,97.804,143.3074]
[1770014438490,29.1017305,97.937,97.828,9.2103]
[1770014438689,29.1017305,97.937,97.842,143.2521]
[1770014438995,29.1017305,97.937,97.848,143.2435]
[1770014439298,29.1017305,97.937,97.834,143.2635]
[1770014439492,29.1017305,97.937,97.829,408.0]
[1770014439696,29.00088363,97.929,97.83,152.4788]
[1770014440495,29.00088363,97.929,97.843,9.2089]
[1770014440699,29.00088363,97.929,97.849,143.2415]
[1770014440900,29.00088363,97.929,97.84,143.2544]
[1770014441395,29.00088363,97.929,97.824,143.2775]
[1770014441700,152.2907,97.952,97.807,143.3035]
[1770014441701,29.35928719,97.909,97.82,143.2842]
[1770014442001,29.35928719,97.909,97.821,143.2829]
[1770014442203,29.35928719,97.909,97.834,9.2097]
[1770014443002,29.03567649,97.889,97.811,143.2972]
[1770014443200,29.03567649,97.889,97.815,143.2919]
[1770014443703,29.03567649,97.889,97.76,8.70590441]
[1770014443704,29.03567649,97.869,97.791,143.3258]
[1770014443898,29.03567649,97.869,97.793,143.3239]
[1770014444099,29.03567649,97.869,97.796,143.3192]
[1770014444304,29.03567649,97.869,97.788,143.3311]
[1770014444599,29.03567649,97.869,97.803,9.2127]
[1770014444992,29.03567649,97.869,97.803,152.5209]
[1770014445498,29.03567649,97.869,97.755,430.1357]
[1770014445696,29.03567649,97.869,97.814,9.2116]
[1770014446701,29.03567649,97.869,97.773,9.2154]
[1770014447306,29.03567649,97.869,97.786,9.2143]
[1770014448103,8.70590441,97.89,97.786,152.5484]
[1770014448498,29.00495877,97.894,97.786,152.5484]
[1770014448499,29.00495877,97.894,97.8,9.2129]
[1770014448897,29.00495877,97.894,97.782,143.3401]
[1770014449103,29.00495877,97.894,97.787,9.2142]